[Event "Titled Tuesday Blitz August 22 Early 2023"]
[White "Mihailidis, Anastasios"]
[Black "Bogaudinov, Rushan"]
[WhiteFideId "4205588"]
[BlackFideId "4129288"]
[WhiteElo "2530"]
[BlackElo "2401"]
[Result "1-0"]
[Round "8"]
[TimeControl "180+1"]
[Date "2023.08.22"]
[WhiteClock "0:00:01"]
[BlackClock "0:00:00"]
[Board "128"]

1. e4 {[%clk 0:03:00]}  a6 {[%clk 0:02:14]} 2. d4 {[%clk 0:02:58]}  e6 {[%clk 0:02:14]} 3. c4 {[%clk 0:02:58]}  d6 {[%clk 0:02:13]} 4. Nc3 {[%clk 0:02:58]}  c5 {[%clk 0:02:11]} 5. dxc5 {[%clk 0:02:57]}  dxc5 {[%clk 0:02:11]} 6. Qxd8+ {[%clk 0:02:57]}  Kxd8 {[%clk 0:02:12]} 7. Be3 {[%clk 0:02:55]}  Nc6 {[%clk 0:02:08]} 8. O-O-O+ {[%clk 0:02:56]}  Kc7 {[%clk 0:02:08]} 9. f4 {[%clk 0:02:56]}  Nf6 {[%clk 0:02:05]} 10. Nf3 {[%clk 0:02:56]}  h6 {[%clk 0:01:57]} 11. h3 {[%clk 0:02:56]}  Nh5 {[%clk 0:01:44]} 12. g4 {[%clk 0:02:50]}  Ng3 {[%clk 0:01:44]} 13. Rg1 {[%clk 0:02:50]}  Nxf1 {[%clk 0:01:43]} 14. Rgxf1 {[%clk 0:02:49]}  Be7 {[%clk 0:01:31]} 15. e5 {[%clk 0:02:49]}  b6 {[%clk 0:01:27]} 16. Ne4 {[%clk 0:02:49]}  Bb7 {[%clk 0:01:27]} 17. Nd6 {[%clk 0:02:48]}  Rhf8 {[%clk 0:01:25]} 18. Rd2 {[%clk 0:02:36]}  f6 {[%clk 0:01:21]} 19. Nxb7 {[%clk 0:02:28]}  fxe5 {[%clk 0:01:16]} 20. fxe5 {[%clk 0:02:16]}  Nxe5 {[%clk 0:01:12]} 21. Nxe5 {[%clk 0:02:14]}  Rxf1+ {[%clk 0:01:11]} 22. Kc2 {[%clk 0:02:15]}  Kxb7 {[%clk 0:00:55]} 23. Rd7+ {[%clk 0:02:15]}  Kc8 {[%clk 0:00:54]} 24. Rxe7 {[%clk 0:02:15]}  Rh1 {[%clk 0:00:41]} 25. Bf4 {[%clk 0:02:10]}  Rxh3 {[%clk 0:00:35]} 26. Nf7 {[%clk 0:02:07]}  Rf3 {[%clk 0:00:27]} 27. Rc7+ {[%clk 0:01:55]}  Kb8 {[%clk 0:00:26]} 28. Bd6 {[%clk 0:01:53]}  Ra7 {[%clk 0:00:20]} 29. Rc6+ {[%clk 0:01:41]}  Ka8 {[%clk 0:00:20]} 30. Nd8 {[%clk 0:01:29]}  Rd7 {[%clk 0:00:20]} 31. Rc8+ {[%clk 0:01:25]}  Ka7 {[%clk 0:00:21]} 32. Bb8+ {[%clk 0:01:24]}  Ka8 {[%clk 0:00:20]} 33. Bc7+ {[%clk 0:01:21]}  Ka7 {[%clk 0:00:19]} 34. Bb8+ {[%clk 0:01:20]}  Ka8 {[%clk 0:00:20]} 35. Be5+ {[%clk 0:01:20]}  Ka7 {[%clk 0:00:20]} 36. Nxe6 {[%clk 0:01:09]}  Re3 {[%clk 0:00:18]} 37. Nf8 {[%clk 0:00:57]}  Re7 {[%clk 0:00:13]} 38. Bc3 {[%clk 0:00:55]}  Kb7 {[%clk 0:00:13]} 39. Rd8 {[%clk 0:00:52]}  b5 {[%clk 0:00:13]} 40. cxb5 {[%clk 0:00:43]}  axb5 {[%clk 0:00:14]} 41. a3 {[%clk 0:00:43]}  Re8 {[%clk 0:00:06]} 42. Rd7+ {[%clk 0:00:34]}  Kc6 {[%clk 0:00:06]} 43. Rf7 {[%clk 0:00:35]}  Re2+ {[%clk 0:00:05]} 44. Kb3 {[%clk 0:00:34]}  c4+ {[%clk 0:00:05]} 45. Kb4 {[%clk 0:00:34]}  g5 {[%clk 0:00:05]} 46. Rf6+ {[%clk 0:00:27]}  Kd5 {[%clk 0:00:05]} 47. Nd7 {[%clk 0:00:20]}  Ke4 {[%clk 0:00:03]} 48. Nc5+ {[%clk 0:00:18]}  Ke3 {[%clk 0:00:03]} 49. Kxb5 {[%clk 0:00:18]}  Rb8+ {[%clk 0:00:02]} 50. Kxc4 {[%clk 0:00:18]}  Rc8 {[%clk 0:00:02]} 51. Re6+ {[%clk 0:00:18]}  Kf2 {[%clk 0:00:02]} 52. Bd4+ {[%clk 0:00:18]}  Kf1 {[%clk 0:00:01]} 53. Rf6+ {[%clk 0:00:18]}  Kg2 {[%clk 0:00:01]} 54. Kd5 {[%clk 0:00:17]}  Kh3 {[%clk 0:00:02]} 55. Rxh6+ {[%clk 0:00:16]}  Kxg4 {[%clk 0:00:03]} 56. Rd6 {[%clk 0:00:16]}  Rce8 {[%clk 0:00:03]} 57. b4 {[%clk 0:00:16]}  Rd2 {[%clk 0:00:03]} 58. b5 {[%clk 0:00:15]}  Kf3 {[%clk 0:00:04]} 59. b6 {[%clk 0:00:15]}  g4 {[%clk 0:00:04]} 60. b7 {[%clk 0:00:15]}  g3 {[%clk 0:00:04]} 61. Rf6+ {[%clk 0:00:15]}  Kg4 {[%clk 0:00:04]} 62. Rg6+ {[%clk 0:00:15]}  Kf5 {[%clk 0:00:04]} 63. Rxg3 {[%clk 0:00:15]}  Rd8+ {[%clk 0:00:05]} 64. Kc6 {[%clk 0:00:13]}  R2xd4 {[%clk 0:00:06]} 65. Rb3 {[%clk 0:00:11]}  Rc4 {[%clk 0:00:05]} 66. b8=Q {[%clk 0:00:10]}  Rxb8 {[%clk 0:00:05]} 67. Rxb8 {[%clk 0:00:10]}  Ke5 {[%clk 0:00:06]} 68. a4 {[%clk 0:00:07]}  Kd4 {[%clk 0:00:05]} 69. Rb5 {[%clk 0:00:08]}  Kc3 {[%clk 0:00:04]} 70. a5 {[%clk 0:00:08]}  Kd4 {[%clk 0:00:04]} 71. a6 {[%clk 0:00:08]}  Rc1 {[%clk 0:00:05]} 72. a7 {[%clk 0:00:08]}  Ra1 {[%clk 0:00:06]} 73. Kb6 {[%clk 0:00:07]}  Kc4 {[%clk 0:00:06]} 74. Ra5 {[%clk 0:00:06]}  Rb1+ {[%clk 0:00:06]} 75. Kc7 {[%clk 0:00:06]}  Kb4 {[%clk 0:00:05]} 76. a8=Q {[%clk 0:00:05]}  Rc1 {[%clk 0:00:06]} 77. Qb7+ {[%clk 0:00:04]}  Kc4 {[%clk 0:00:06]} 78. Qb3+ {[%clk 0:00:04]}  Kd4 {[%clk 0:00:06]} 79. Qd3+ {[%clk 0:00:04]}  Ke5 {[%clk 0:00:00]} 80. Kb7 {[%clk 0:00:01]} 1-0


[Site "https://www.chess.com"]

[Event "Titled Tuesday Blitz August 22 Early 2023"]
[White "pasteta13"]
[Black "Bilan, Danila"]
[BlackFideId "24161918"]
[WhiteElo "2399"]
[BlackElo "2509"]
[Result "1-0"]
[Round "8"]
[TimeControl "180+1"]
[Date "2023.08.22"]
[WhiteClock "0:00:10"]
[BlackClock "0:00:02"]
[Board "131"]

1. e4 {[%clk 0:02:57]}  c6 {[%clk 0:03:00]} 2. Nf3 {[%clk 0:02:58]}  d5 {[%clk 0:03:01]} 3. exd5 {[%clk 0:02:58]}  cxd5 {[%clk 0:03:01]} 4. d4 {[%clk 0:02:59]}  Nc6 {[%clk 0:03:02]} 5. c4 {[%clk 0:03:00]}  Nf6 {[%clk 0:03:03]} 6. Nc3 {[%clk 0:03:01]}  Bg4 {[%clk 0:03:03]} 7. cxd5 {[%clk 0:03:02]}  Nxd5 {[%clk 0:03:03]} 8. Bb5 {[%clk 0:03:03]}  e6 {[%clk 0:03:01]} 9. h3 {[%clk 0:03:03]}  Bxf3 {[%clk 0:03:02]} 10. Qxf3 {[%clk 0:03:04]}  Rc8 {[%clk 0:03:01]} 11. O-O {[%clk 0:03:03]}  Be7 {[%clk 0:03:01]} 12. Bxc6+ {[%clk 0:03:02]}  Rxc6 {[%clk 0:03:01]} 13. Be3 {[%clk 0:03:03]}  Nxc3 {[%clk 0:02:57]} 14. bxc3 {[%clk 0:03:03]}  Qd5 {[%clk 0:02:52]} 15. Qg3 {[%clk 0:02:46]}  O-O {[%clk 0:02:49]} 16. Bd2 {[%clk 0:02:45]}  Rfc8 {[%clk 0:02:41]} 17. Rfb1 {[%clk 0:02:32]}  Rc4 {[%clk 0:02:27]} 18. a4 {[%clk 0:02:14]}  a6 {[%clk 0:02:20]} 19. Rb6 {[%clk 0:01:55]}  Bd8 {[%clk 0:02:08]} 20. Rd6 {[%clk 0:01:50]}  Qf5 {[%clk 0:01:47]} 21. Rd7 {[%clk 0:01:32]}  Bc7 {[%clk 0:01:26]} 22. Qg4 {[%clk 0:01:03]}  Qxg4 {[%clk 0:01:17]} 23. hxg4 {[%clk 0:01:04]}  Kf8 {[%clk 0:01:14]} 24. d5 {[%clk 0:00:46]}  exd5 {[%clk 0:00:57]} 25. Re1 {[%clk 0:00:28]}  Rd8 {[%clk 0:00:47]} 26. Ree7 {[%clk 0:00:19]}  Rxd7 {[%clk 0:00:46]} 27. Rxd7 {[%clk 0:00:20]}  Ke8 {[%clk 0:00:44]} 28. Rxd5 {[%clk 0:00:18]}  Rxa4 {[%clk 0:00:43]} 29. f3 {[%clk 0:00:12]}  Bg3 {[%clk 0:00:35]} 30. Kf1 {[%clk 0:00:12]}  Rc4 {[%clk 0:00:28]} 31. Ke2 {[%clk 0:00:12]}  b5 {[%clk 0:00:26]} 32. Rh5 {[%clk 0:00:06]}  h6 {[%clk 0:00:25]} 33. g5 {[%clk 0:00:07]}  Rc5 {[%clk 0:00:19]} 34. gxh6 {[%clk 0:00:04]}  Rxh5 {[%clk 0:00:03]} 35. hxg7 {[%clk 0:00:04]}  Re5+ {[%clk 0:00:03]} 36. Kd1 {[%clk 0:00:05]}  Rd5 {[%clk 0:00:03]} 37. g8=Q+ {[%clk 0:00:05]}  Ke7 {[%clk 0:00:04]} 38. Qxg3 {[%clk 0:00:05]}  Rd6 {[%clk 0:00:04]} 39. Qg5+ {[%clk 0:00:05]}  f6 {[%clk 0:00:04]} 40. Qc5 {[%clk 0:00:06]}  Kd7 {[%clk 0:00:04]} 41. Kc2 {[%clk 0:00:07]}  Rc6 {[%clk 0:00:04]} 42. Qa7+ {[%clk 0:00:07]}  Kd6 {[%clk 0:00:04]} 43. Bf4+ {[%clk 0:00:08]}  Kd5 {[%clk 0:00:04]} 44. Qd4+ {[%clk 0:00:08]}  Ke6 {[%clk 0:00:04]} 45. Qe4+ {[%clk 0:00:09]}  Kd7 {[%clk 0:00:05]} 46. Qd5+ {[%clk 0:00:10]}  Rd6 {[%clk 0:00:02]} 47. Qxd6+ {[%clk 0:00:10]} 1-0


[Site "https://www.chess.com"]

[Event "Titled Tuesday Blitz August 22 Early 2023"]
[White "Tikhonov, Viacheslav"]
[Black "Prudnykova, Olga"]
[WhiteFideId "44196407"]
[BlackFideId "14121093"]
[WhiteElo "2500"]
[BlackElo "2390"]
[Result "1-0"]
[Round "8"]
[TimeControl "180+1"]
[Date "2023.08.22"]
[WhiteClock "0:00:38"]
[BlackClock "0:00:12"]
[Board "133"]

1. d4 {[%clk 0:02:56]}  Nf6 {[%clk 0:02:59]} 2. c4 {[%clk 0:02:55]}  g6 {[%clk 0:02:57]} 3. Nc3 {[%clk 0:02:54]}  d5 {[%clk 0:02:57]} 4. cxd5 {[%clk 0:02:50]}  Nxd5 {[%clk 0:02:58]} 5. Bd2 {[%clk 0:02:51]}  Nb6 {[%clk 0:02:57]} 6. e4 {[%clk 0:02:48]}  Qxd4 {[%clk 0:02:46]} 7. Nf3 {[%clk 0:02:48]}  Qd8 {[%clk 0:02:46]} 8. Qc2 {[%clk 0:02:48]}  c6 {[%clk 0:02:44]} 9. Rd1 {[%clk 0:02:48]}  N8d7 {[%clk 0:02:42]} 10. a4 {[%clk 0:02:42]}  a5 {[%clk 0:02:40]} 11. h4 {[%clk 0:02:39]}  h5 {[%clk 0:02:39]} 12. Bf4 {[%clk 0:02:35]}  Bg7 {[%clk 0:02:37]} 13. Be2 {[%clk 0:02:33]}  O-O {[%clk 0:02:37]} 14. Ng5 {[%clk 0:02:28]}  Qe8 {[%clk 0:02:22]} 15. Qb3 {[%clk 0:02:11]}  e5 {[%clk 0:02:07]} 16. Be3 {[%clk 0:02:09]}  Qd8 {[%clk 0:01:56]} 17. g4 {[%clk 0:02:03]}  hxg4 {[%clk 0:01:46]} 18. h5 {[%clk 0:02:02]}  gxh5 {[%clk 0:01:45]} 19. Rxh5 {[%clk 0:02:03]}  Qc7 {[%clk 0:01:35]} 20. Bxg4 {[%clk 0:01:27]}  Nf6 {[%clk 0:01:14]} 21. Bxb6 {[%clk 0:01:23]}  Qe7 {[%clk 0:01:13]} 22. Bxc8 {[%clk 0:01:09]}  Nxh5 {[%clk 0:01:13]} 23. Nxf7 {[%clk 0:01:03]}  Kh7 {[%clk 0:00:37]} 24. Bf5+ {[%clk 0:01:01]}  Kg8 {[%clk 0:00:33]} 25. Nxe5+ {[%clk 0:00:55]}  Rf7 {[%clk 0:00:24]} 26. Nxf7 {[%clk 0:00:52]}  Nf4 {[%clk 0:00:14]} 27. Rd7 {[%clk 0:00:45]}  Qb4 {[%clk 0:00:14]} 28. Nh6+ {[%clk 0:00:38]}  Kh8 {[%clk 0:00:13]} 29. Qg8+ {[%clk 0:00:37]}  Rxg8 {[%clk 0:00:12]} 30. Nf7# {[%clk 0:00:38]} 1-0


[Site "https://www.chess.com"]

[Event "Titled Tuesday Blitz August 22 Early 2023"]
[White "Rego, Pedro Filipe"]
[Black "Perez, Maximiliano"]
[WhiteFideId "1904310"]
[BlackFideId "117234"]
[WhiteElo "2384"]
[BlackElo "2499"]
[Result "0-1"]
[Round "8"]
[TimeControl "180+1"]
[Date "2023.08.22"]
[WhiteClock "0:00:11"]
[BlackClock "0:00:11"]
[Board "134"]

1. e4 {[%clk 0:03:00]}  c6 {[%clk 0:02:54]} 2. d4 {[%clk 0:03:00]}  d5 {[%clk 0:02:49]} 3. e5 {[%clk 0:03:00]}  c5 {[%clk 0:02:47]} 4. dxc5 {[%clk 0:02:53]}  Nc6 {[%clk 0:02:42]} 5. Nf3 {[%clk 0:02:44]}  Bg4 {[%clk 0:02:39]} 6. c3 {[%clk 0:02:41]}  e6 {[%clk 0:02:39]} 7. b4 {[%clk 0:02:36]}  Nxe5 {[%clk 0:02:38]} 8. Nxe5 {[%clk 0:02:29]}  Bxd1 {[%clk 0:02:38]} 9. Bb5+ {[%clk 0:02:25]}  Ke7 {[%clk 0:02:38]} 10. Kxd1 {[%clk 0:02:21]}  f6 {[%clk 0:02:36]} 11. Nf3 {[%clk 0:02:18]}  Kf7 {[%clk 0:02:35]} 12. Be3 {[%clk 0:02:13]}  Ne7 {[%clk 0:02:33]} 13. Nbd2 {[%clk 0:02:11]}  Nf5 {[%clk 0:02:32]} 14. Re1 {[%clk 0:02:08]}  Nxe3+ {[%clk 0:02:23]} 15. Rxe3 {[%clk 0:02:09]}  e5 {[%clk 0:02:24]} 16. Nb3 {[%clk 0:02:03]}  g6 {[%clk 0:02:23]} 17. Ke1 {[%clk 0:02:02]}  Bh6 {[%clk 0:02:23]} 18. Re2 {[%clk 0:02:01]}  a6 {[%clk 0:02:22]} 19. Ba4 {[%clk 0:01:56]}  Qc7 {[%clk 0:01:58]} 20. Rd1 {[%clk 0:01:54]}  Rhd8 {[%clk 0:01:57]} 21. Na5 {[%clk 0:01:44]}  b5 {[%clk 0:01:49]} 22. Bb3 {[%clk 0:01:41]}  Rac8 {[%clk 0:01:26]} 23. a4 {[%clk 0:01:40]}  bxa4 {[%clk 0:01:25]} 24. Bxa4 {[%clk 0:01:40]}  Kg7 {[%clk 0:01:21]} 25. Nc6 {[%clk 0:01:34]}  Rf8 {[%clk 0:01:13]} 26. Rxd5 {[%clk 0:01:30]}  Rf7 {[%clk 0:01:09]} 27. g4 {[%clk 0:01:05]}  Bf4 {[%clk 0:00:57]} 28. g5 {[%clk 0:00:59]}  fxg5 {[%clk 0:00:55]} 29. Nfxe5 {[%clk 0:00:58]}  Bxe5 {[%clk 0:00:56]} 30. Rexe5 {[%clk 0:00:53]}  Rcf8 {[%clk 0:00:54]} 31. Nd4 {[%clk 0:00:48]}  Re7 {[%clk 0:00:38]} 32. Ne6+ {[%clk 0:00:42]}  Rxe6 {[%clk 0:00:38]} 33. Rxe6 {[%clk 0:00:43]}  Qxh2 {[%clk 0:00:38]} 34. Rd7+ {[%clk 0:00:29]}  Kh6 {[%clk 0:00:38]} 35. Re2 {[%clk 0:00:29]}  Qg1+ {[%clk 0:00:34]} 36. Kd2 {[%clk 0:00:29]}  Rxf2 {[%clk 0:00:35]} 37. c6 {[%clk 0:00:28]}  Rxe2+ {[%clk 0:00:26]} 38. Kxe2 {[%clk 0:00:28]}  Qg4+ {[%clk 0:00:21]} 39. Kd3 {[%clk 0:00:27]}  Qf3+ {[%clk 0:00:19]} 40. Kc4 {[%clk 0:00:25]}  g4 {[%clk 0:00:17]} 41. c7 {[%clk 0:00:24]}  Qb7 {[%clk 0:00:17]} 42. Kc5 {[%clk 0:00:18]}  g3 {[%clk 0:00:17]} 43. Bc6 {[%clk 0:00:18]}  Qc8 {[%clk 0:00:16]} 44. Kb6 {[%clk 0:00:17]}  g2 {[%clk 0:00:14]} 45. Rd8 {[%clk 0:00:15]}  g1=Q+ {[%clk 0:00:11]} 46. Ka5 {[%clk 0:00:11]}  Qxc7+ {[%clk 0:00:11]} 47. Kxa6 {[%clk 0:00:11]}  Qgb6# {[%clk 0:00:11]} 0-1


[Site "https://www.chess.com"]

[Event "Titled Tuesday Blitz August 22 Early 2023"]
[White "Ovezdurdyyeva, Jemal"]
[Black "Gogolev, Artem"]
[WhiteFideId "14001888"]
[BlackFideId "4116615"]
[WhiteElo "2382"]
[BlackElo "2492"]
[Result "0-1"]
[Round "8"]
[TimeControl "180+1"]
[Date "2023.08.22"]
[WhiteClock "0:00:16"]
[BlackClock "0:01:20"]
[Board "137"]

1. e4 {[%clk 0:03:00]}  e5 {[%clk 0:02:59]} 2. Nf3 {[%clk 0:03:01]}  Nc6 {[%clk 0:02:59]} 3. Bc4 {[%clk 0:03:01]}  Nf6 {[%clk 0:02:59]} 4. d3 {[%clk 0:03:00]}  Bc5 {[%clk 0:02:59]} 5. O-O {[%clk 0:02:59]}  h6 {[%clk 0:02:56]} 6. h3 {[%clk 0:02:58]}  a6 {[%clk 0:02:56]} 7. c3 {[%clk 0:02:56]}  Ba7 {[%clk 0:02:56]} 8. Be3 {[%clk 0:02:52]}  d6 {[%clk 0:02:53]} 9. Na3 {[%clk 0:02:47]}  O-O {[%clk 0:02:52]} 10. Qe2 {[%clk 0:02:43]}  Be6 {[%clk 0:02:50]} 11. b4 {[%clk 0:02:42]}  Re8 {[%clk 0:02:42]} 12. Rab1 {[%clk 0:02:41]}  Qd7 {[%clk 0:02:37]} 13. Rfd1 {[%clk 0:02:36]}  d5 {[%clk 0:02:34]} 14. exd5 {[%clk 0:02:36]}  Nxd5 {[%clk 0:02:20]} 15. Bxa7 {[%clk 0:02:23]}  Nxc3 {[%clk 0:02:17]} 16. Qe3 {[%clk 0:01:46]}  Nxb1 {[%clk 0:02:08]} 17. Rxb1 {[%clk 0:01:44]}  Nxa7 {[%clk 0:02:03]} 18. Nxe5 {[%clk 0:01:44]}  Qa4 {[%clk 0:01:59]} 19. Qc1 {[%clk 0:01:21]}  Bxc4 {[%clk 0:01:51]} 20. Naxc4 {[%clk 0:01:04]}  b5 {[%clk 0:01:39]} 21. Qf4 {[%clk 0:00:16]}  f6 {[%clk 0:01:20]} 0-1


[Site "https://www.chess.com"]

[Event "Titled Tuesday Blitz August 22 Early 2023"]
[White "Slovineanu, Viacheslav"]
[Black "Dinosaurio_1975"]
[WhiteFideId "13900510"]
[WhiteElo "2381"]
[BlackElo "2491"]
[Result "1-0"]
[Round "8"]
[TimeControl "180+1"]
[Date "2023.08.22"]
[WhiteClock "0:00:05"]
[BlackClock "0:00:57"]
[Board "139"]

1. d4 {[%clk 0:03:00]}  d5 {[%clk 0:02:59]} 2. Nf3 {[%clk 0:03:00]}  e6 {[%clk 0:02:59]} 3. c4 {[%clk 0:03:01]}  Nf6 {[%clk 0:02:58]} 4. e3 {[%clk 0:03:01]}  Be7 {[%clk 0:02:57]} 5. b3 {[%clk 0:03:00]}  O-O {[%clk 0:02:57]} 6. Bd3 {[%clk 0:03:00]}  b6 {[%clk 0:02:56]} 7. O-O {[%clk 0:03:00]}  Bb7 {[%clk 0:02:57]} 8. Bb2 {[%clk 0:03:01]}  Nbd7 {[%clk 0:02:57]} 9. Nc3 {[%clk 0:03:00]}  dxc4 {[%clk 0:02:55]} 10. bxc4 {[%clk 0:03:00]}  c5 {[%clk 0:02:55]} 11. Qe2 {[%clk 0:03:00]}  Rc8 {[%clk 0:02:55]} 12. Rad1 {[%clk 0:02:59]}  Qc7 {[%clk 0:02:55]} 13. Ne5 {[%clk 0:02:53]}  Rfd8 {[%clk 0:02:50]} 14. f4 {[%clk 0:02:24]}  cxd4 {[%clk 0:02:46]} 15. exd4 {[%clk 0:02:24]}  Nf8 {[%clk 0:02:45]} 16. f5 {[%clk 0:02:08]}  a6 {[%clk 0:02:28]} 17. fxe6 {[%clk 0:01:53]}  Nxe6 {[%clk 0:02:26]} 18. d5 {[%clk 0:01:52]}  Nd4 {[%clk 0:02:15]} 19. Qe1 {[%clk 0:00:25]}  Bc5 {[%clk 0:02:13]} 20. Kh1 {[%clk 0:00:25]}  Re8 {[%clk 0:02:12]} 21. Rxf6 {[%clk 0:00:09]}  Rxe5 {[%clk 0:01:38]} 22. Qg3 {[%clk 0:00:09]}  Qe7 {[%clk 0:01:31]} 23. Rff1 {[%clk 0:00:08]}  Rg5 {[%clk 0:01:29]} 24. Qh3 {[%clk 0:00:08]}  h6 {[%clk 0:01:18]} 25. Ne4 {[%clk 0:00:08]}  Re5 {[%clk 0:01:14]} 26. Nxc5 {[%clk 0:00:08]}  bxc5 {[%clk 0:01:14]} 27. Bxd4 {[%clk 0:00:06]}  cxd4 {[%clk 0:01:14]} 28. Qg3 {[%clk 0:00:06]}  Re8 {[%clk 0:01:13]} 29. h3 {[%clk 0:00:06]}  Re3 {[%clk 0:01:13]} 30. Qg4 {[%clk 0:00:06]}  Bc8 {[%clk 0:01:08]} 31. Qxd4 {[%clk 0:00:06]}  Qg5 {[%clk 0:00:57]} 32. Rf3 {[%clk 0:00:06]}  Rxf3 {[%clk 0:00:56]} 33. gxf3 {[%clk 0:00:06]}  Bxh3 {[%clk 0:00:56]} 34. Rg1 {[%clk 0:00:06]}  Qh5 {[%clk 0:00:57]} 35. Qxg7# {[%clk 0:00:05]} 1-0


[Site "https://www.chess.com"]

[Event "Titled Tuesday Blitz August 22 Early 2023"]
[White "Tanwir, Furqan"]
[Black "arenal72"]
[WhiteFideId "2023962"]
[WhiteElo "2373"]
[BlackElo "2489"]
[Result "0-1"]
[Round "8"]
[TimeControl "180+1"]
[Date "2023.08.22"]
[WhiteClock "0:01:31"]
[BlackClock "0:01:27"]
[Board "141"]

1. e4 {[%clk 0:03:00]}  Nc6 {[%clk 0:02:59]} 2. d4 {[%clk 0:03:00]}  d5 {[%clk 0:02:58]} 3. e5 {[%clk 0:03:00]}  Bf5 {[%clk 0:02:58]} 4. Ne2 {[%clk 0:03:01]}  Qd7 {[%clk 0:02:57]} 5. Ng3 {[%clk 0:03:02]}  Bg6 {[%clk 0:02:54]} 6. c3 {[%clk 0:02:52]}  f6 {[%clk 0:02:52]} 7. f4 {[%clk 0:02:50]}  O-O-O {[%clk 0:02:49]} 8. Be2 {[%clk 0:02:49]}  e6 {[%clk 0:02:46]} 9. Nd2 {[%clk 0:02:46]}  h5 {[%clk 0:02:44]} 10. Bxh5 {[%clk 0:02:40]}  Bxh5 {[%clk 0:02:41]} 11. Nxh5 {[%clk 0:02:40]}  g5 {[%clk 0:02:40]} 12. exf6 {[%clk 0:02:22]}  gxf4 {[%clk 0:02:34]} 13. O-O {[%clk 0:02:20]}  Bd6 {[%clk 0:02:29]} 14. Nb3 {[%clk 0:02:17]}  Qh7 {[%clk 0:02:25]} 15. f7 {[%clk 0:02:11]}  Nge7 {[%clk 0:02:10]} 16. Rxf4 {[%clk 0:01:52]}  Bxf4 {[%clk 0:02:06]} 17. Nxf4 {[%clk 0:01:47]}  Qxh2+ {[%clk 0:02:04]} 18. Kf1 {[%clk 0:01:47]}  Rdf8 {[%clk 0:01:52]} 19. Qg4 {[%clk 0:01:45]}  Nf5 {[%clk 0:01:37]} 20. Nxe6 {[%clk 0:01:43]}  Rxf7 {[%clk 0:01:33]} 21. Bf4 {[%clk 0:01:36]}  Ne3+ {[%clk 0:01:27]} 22. Ke2 {[%clk 0:01:33]}  Nxg4 {[%clk 0:01:27]} 23. Bxh2 {[%clk 0:01:31]}  Rxh2 {[%clk 0:01:27]} 0-1


[Site "https://www.chess.com"]

[Event "Titled Tuesday Blitz August 22 Early 2023"]
[White "Konenkin, Dmitry"]
[Black "slidingknight2775"]
[WhiteFideId "4185781"]
[WhiteElo "2377"]
[BlackElo "2489"]
[Result "1-0"]
[Round "8"]
[TimeControl "180+1"]
[Date "2023.08.22"]
[WhiteClock "0:00:13"]
[BlackClock "0:00:15"]
[Board "142"]

1. d4 {[%clk 0:03:00]}  Nf6 {[%clk 0:02:59]} 2. Bg5 {[%clk 0:03:01]}  d5 {[%clk 0:02:59]} 3. Nd2 {[%clk 0:02:58]}  c5 {[%clk 0:02:59]} 4. e3 {[%clk 0:02:54]}  Nc6 {[%clk 0:03:00]} 5. Ngf3 {[%clk 0:02:54]}  Qb6 {[%clk 0:02:55]} 6. dxc5 {[%clk 0:02:29]}  Qxb2 {[%clk 0:02:43]} 7. Rb1 {[%clk 0:02:07]}  Qc3 {[%clk 0:02:43]} 8. Bd3 {[%clk 0:01:42]}  Qxc5 {[%clk 0:02:39]} 9. O-O {[%clk 0:01:42]}  Bg4 {[%clk 0:02:35]} 10. Rxb7 {[%clk 0:01:35]}  e5 {[%clk 0:02:10]} 11. Bb5 {[%clk 0:01:17]}  a6 {[%clk 0:01:10]} 12. Ba4 {[%clk 0:00:41]}  Rc8 {[%clk 0:00:48]} 13. h3 {[%clk 0:00:34]}  Bd7 {[%clk 0:00:38]} 14. Bxf6 {[%clk 0:00:21]}  gxf6 {[%clk 0:00:37]} 15. Qb1 {[%clk 0:00:17]}  Be7 {[%clk 0:00:33]} 16. c4 {[%clk 0:00:12]}  d4 {[%clk 0:00:16]} 17. exd4 {[%clk 0:00:12]}  exd4 {[%clk 0:00:17]} 18. Re1 {[%clk 0:00:12]}  Rd8 {[%clk 0:00:13]} 19. Ne4 {[%clk 0:00:12]}  Qh5 {[%clk 0:00:09]} 20. Nxf6+ {[%clk 0:00:12]}  Kf8 {[%clk 0:00:09]} 21. Nxh5 {[%clk 0:00:12]}  Nb8 {[%clk 0:00:10]} 22. Bxd7 {[%clk 0:00:11]}  Nxd7 {[%clk 0:00:11]} 23. Qf5 {[%clk 0:00:11]}  Nf6 {[%clk 0:00:11]} 24. Rbxe7 {[%clk 0:00:10]}  Rd6 {[%clk 0:00:12]} 25. Re8+ {[%clk 0:00:10]}  Nxe8 {[%clk 0:00:12]} 26. Qe5 {[%clk 0:00:10]}  Re6 {[%clk 0:00:07]} 27. Qxh8+ {[%clk 0:00:11]}  Ke7 {[%clk 0:00:08]} 28. Rxe6+ {[%clk 0:00:11]}  fxe6 {[%clk 0:00:09]} 29. Qxh7+ {[%clk 0:00:11]}  Kd6 {[%clk 0:00:10]} 30. Qg8 {[%clk 0:00:11]}  Nc7 {[%clk 0:00:11]} 31. Qd8+ {[%clk 0:00:10]}  Kc6 {[%clk 0:00:11]} 32. Ne5+ {[%clk 0:00:11]}  Kb6 {[%clk 0:00:12]} 33. Qxd4+ {[%clk 0:00:11]}  Ka5 {[%clk 0:00:12]} 34. Nf6 {[%clk 0:00:12]}  Nb5 {[%clk 0:00:12]} 35. cxb5 {[%clk 0:00:12]}  Kxb5 {[%clk 0:00:11]} 36. h4 {[%clk 0:00:12]}  a5 {[%clk 0:00:11]} 37. h5 {[%clk 0:00:13]}  a4 {[%clk 0:00:12]} 38. h6 {[%clk 0:00:13]}  a3 {[%clk 0:00:13]} 39. h7 {[%clk 0:00:14]}  Ka6 {[%clk 0:00:14]} 40. h8=Q {[%clk 0:00:14]}  Kb7 {[%clk 0:00:15]} 41. Qhd8 {[%clk 0:00:13]}  Ka6 {[%clk 0:00:15]} 42. Q8b6# {[%clk 0:00:13]} 1-0


[Site "https://www.chess.com"]

[Event "Titled Tuesday Blitz August 22 Early 2023"]
[White "Wang2007"]
[Black "Devaev, Alexander"]
[BlackFideId "4169395"]
[WhiteElo "2372"]
[BlackElo "2488"]
[Result "0-1"]
[Round "8"]
[TimeControl "180+1"]
[Date "2023.08.22"]
[WhiteClock "0:00:01"]
[BlackClock "0:00:53"]
[Board "143"]

1. d4 {[%clk 0:01:02]}  Nf6 {[%clk 0:02:58]} 2. c4 {[%clk 0:01:03]}  e6 {[%clk 0:02:58]} 3. Nf3 {[%clk 0:01:03]}  c5 {[%clk 0:02:58]} 4. g3 {[%clk 0:01:04]}  cxd4 {[%clk 0:02:58]} 5. Nxd4 {[%clk 0:01:04]}  Nc6 {[%clk 0:02:59]} 6. Bg2 {[%clk 0:01:04]}  Be7 {[%clk 0:03:00]} 7. O-O {[%clk 0:01:03]}  O-O {[%clk 0:03:00]} 8. Nc3 {[%clk 0:01:04]}  Ne5 {[%clk 0:03:01]} 9. b3 {[%clk 0:01:02]}  d6 {[%clk 0:03:01]} 10. Bb2 {[%clk 0:01:02]}  a6 {[%clk 0:03:01]} 11. Rc1 {[%clk 0:01:01]}  Qc7 {[%clk 0:03:00]} 12. e3 {[%clk 0:00:59]}  Rb8 {[%clk 0:02:56]} 13. Qe2 {[%clk 0:00:57]}  Re8 {[%clk 0:02:57]} 14. Rfd1 {[%clk 0:00:57]}  Bf8 {[%clk 0:02:57]} 15. h3 {[%clk 0:00:17]}  h6 {[%clk 0:02:56]} 16. f4 {[%clk 0:00:15]}  Ng6 {[%clk 0:02:56]} 17. e4 {[%clk 0:00:15]}  b6 {[%clk 0:02:56]} 18. e5 {[%clk 0:00:08]}  dxe5 {[%clk 0:02:56]} 19. Nc6 {[%clk 0:00:09]}  exf4 {[%clk 0:02:56]} 20. Nxb8 {[%clk 0:00:08]}  Qxb8 {[%clk 0:02:57]} 21. Ne4 {[%clk 0:00:04]}  Nxe4 {[%clk 0:02:42]} 22. Qxe4 {[%clk 0:00:05]}  fxg3 {[%clk 0:02:38]} 23. Rf1 {[%clk 0:00:05]}  f5 {[%clk 0:02:30]} 24. Qe3 {[%clk 0:00:04]}  Nh4 {[%clk 0:02:07]} 25. Rcd1 {[%clk 0:00:03]}  Nxg2 {[%clk 0:02:06]} 26. Kxg2 {[%clk 0:00:04]}  Bb7+ {[%clk 0:02:05]} 27. Kg1 {[%clk 0:00:04]}  Ba8 {[%clk 0:01:50]} 28. Be5 {[%clk 0:00:04]}  Qb7 {[%clk 0:01:50]} 29. Qxg3 {[%clk 0:00:04]}  b5 {[%clk 0:01:25]} 30. Kh2 {[%clk 0:00:04]}  Qf7 {[%clk 0:01:14]} 31. Rg1 {[%clk 0:00:03]}  Rc8 {[%clk 0:01:10]} 32. Rd4 {[%clk 0:00:01]}  g5 {[%clk 0:01:04]} 33. h4 {[%clk 0:00:01]}  g4 {[%clk 0:01:00]} 34. Rxg4+ {[%clk 0:00:01]}  fxg4 {[%clk 0:01:00]} 35. Qxg4+ {[%clk 0:00:02]}  Kh7 {[%clk 0:00:53]} 36. Qd4 {[%clk 0:00:01]} 0-1


[Site "https://www.chess.com"]